bitfinex-derivatives/quotes_BTCF0:USTF0_20250602
["timestamp","ask_amount","ask_price","bid_price","bid_amount"]
[1748877311092,0.1629,104290.0,104280.0,1.49242358]
[1748877311291,0.1629,104290.0,104280.0,1.5426623]
[1748877311593,0.1629,104290.0,104280.0,1.5466623]
[1748877312384,0.1629,104290.0,104280.0,1.5486623]
[1748877312804,0.1629,104290.0,104280.0,1.38278419]
[1748877313097,0.1629,104290.0,104280.0,1.5486623]
[1748877313296,0.1629,104290.0,104280.0,1.49982928]
[1748877314396,0.1629,104290.0,104280.0,1.56087056]
[1748877314894,0.1629,104290.0,104280.0,1.60751904]
[1748877315194,0.36094373,104300.0,104290.0,0.1916978]
[1748877315392,0.52932765,104310.0,104300.0,0.1916794]
[1748877315592,0.24223329,104310.0,104300.0,2.56618865]
[1748877315801,0.0951,104310.0,104300.0,2.92698865]
[1748877316000,0.0951,104310.0,104300.0,2.9766218]
[1748877316597,0.1951,104310.0,104300.0,2.9766218]
[1748877316999,0.386761,104310.0,104300.0,2.71734369]
[1748877317599,0.1951,104310.0,104300.0,2.71734369]
[1748877318101,0.1951,104310.0,104300.0,2.74924369]
[1748877318803,0.1951,104310.0,104300.0,2.75124369]
[1748877318996,0.1951,104310.0,104300.0,2.75120322]
[1748877319206,0.386761,104310.0,104300.0,2.75120322]
[1748877319593,0.386761,104310.0,104300.0,2.75320322]
[1748877320296,0.386761,104310.0,104300.0,2.70361054]
[1748877320504,0.386761,104310.0,104300.0,2.70431935]
[1748877320801,0.1951,104310.0,104300.0,2.70431935]
[1748877321001,0.1951,104310.0,104300.0,1.25319049]
[1748877321203,0.1951,104310.0,104300.0,1.32061751]
[1748877321400,0.1951,104310.0,104300.0,1.38311751]
[1748877321704,0.1951,104310.0,104300.0,1.43198865]
[1748877322395,0.1,104310.0,104300.0,1.43198865]
[1748877322602,0.1002,104310.0,104300.0,1.43198865]
[1748877322800,0.1631,104310.0,104300.0,1.43198865]
[1748877323805,0.1631,104310.0,104300.0,1.26611054]
[1748877324107,0.1631,104310.0,104300.0,1.43198865]
[1748877324599,0.1631,104310.0,104300.0,0.86562865]
[1748877324804,0.1631,104310.0,104300.0,0.80959054]
[1748877325006,0.32897811,104310.0,104300.0,1.17299054]
[1748877325195,0.1323,104310.0,104300.0,1.33886865]
[1748877325397,0.1323,104310.0,104300.0,1.40366865]
[1748877325694,0.1631,104310.0,104300.0,1.40366865]
[1748877325895,0.354761,104310.0,104300.0,1.40366865]
[1748877326096,0.1631,104310.0,104300.0,1.40366865]
[1748877328210,0.1631,104310.0,104300.0,1.35479751]
[1748877328400,0.1631,104310.0,104300.0,1.40366865]
[1748877328702,0.1631,104310.0,104300.0,1.40266865]
[1748877328906,0.1631,104310.0,104300.0,1.35679751]
[1748877329101,0.1631,104310.0,104300.0,0.89899751]
[1748877329304,0.1631,104310.0,104300.0,1.35707751]
[1748877329508,0.1631,104310.0,104300.0,1.40594865]
[1748877330210,0.1631,104310.0,104300.0,1.35707751]
[1748877330211,0.1629,104310.0,104300.0,1.35707751]
[1748877330511,0.1631,104310.0,104300.0,1.35707751]
[1748877331809,0.1323,104310.0,104300.0,1.45450808]
[1748877332305,0.1321,104310.0,104300.0,1.45450808]
[1748877332510,0.1323,104310.0,104300.0,1.45450808]
[1748877332909,0.1002,104310.0,104300.0,2.75494705]
[1748877333104,0.1,104310.0,104300.0,2.86255625]
[1748877333302,0.1002,104310.0,104300.0,2.90741631]
[1748877333505,0.11530382,104330.0,104320.0,0.1916431]
[1748877333707,0.08370382,104330.0,104320.0,1.32318498]
[1748877333907,0.08390382,104330.0,104320.0,1.39897957]
[1748877334916,0.08390382,104330.0,104320.0,1.35020121]
[1748877335212,0.08390382,104330.0,104320.0,1.36457121]
[1748877335710,0.18390382,104330.0,104320.0,1.36457121]
[1748877337212,0.18390382,104330.0,104320.0,1.40111977]
[1748877337808,0.18390382,104330.0,104320.0,1.23524166]
[1748877338106,0.18390382,104330.0,104320.0,1.40111977]
[1748877338609,0.1002,104330.0,104320.0,1.40111977]
[1748877338906,0.1002,104330.0,104320.0,2.90111977]
[1748877339107,0.2918248,104330.0,104320.0,1.85236166]
[1748877339309,0.3580248,104330.0,104320.0,2.12035856]
[1748877339510,0.3580248,104330.0,104320.0,0.81200176]
[1748877340010,0.3580248,104330.0,104320.0,0.35236176]
[1748877340216,0.3580248,104330.0,104320.0,0.81192176]
[1748877343010,0.1664,104330.0,104320.0,0.97779987]
[1748877343309,0.1664,104330.0,104320.0,1.03939987]
[1748877344107,0.1,104330.0,104320.0,1.40019987]
[1748877344314,0.1002,104330.0,104320.0,1.36365131]
[1748877344529,0.1002,104330.0,104320.0,1.41242967]
[1748877344721,0.1,104330.0,104320.0,1.41242967]
[1748877345013,0.1002,104330.0,104320.0,1.41242967]
[1748877345610,0.1002,104330.0,104320.0,1.46092611]
[1748877347412,0.1002,104330.0,104320.0,1.41214775]
[1748877348418,0.2918248,104330.0,104320.0,0.46246079]
[1748877348618,0.2918248,104330.0,104320.0,1.4504189]
[1748877348619,0.1,104330.0,104320.0,1.4504189]
[1748877348822,0.3566248,104330.0,104320.0,1.4504189]
[1748877349025,0.3566248,104330.0,104320.0,1.28450079]
[1748877349213,0.52250291,104330.0,104320.0,0.21225759]
[1748877349410,0.52250291,104330.0,104320.0,0.02721]
[1748877349613,1.23340845,104330.0,104320.0,0.48573]
[1748877350128,0.98340845,104330.0,104320.0,0.48573]
[1748877350423,0.81753034,104330.0,104320.0,0.48569]
[1748877350619,0.1916431,104320.0,104310.0,0.56654674]
[1748877350824,0.6499431,104320.0,104310.0,1.06153789]
[1748877351028,0.6499431,104320.0,104310.0,1.09373789]
[1748877351728,0.6499431,104320.0,104310.0,1.05698674]
[1748877352109,0.3935,104320.0,104310.0,1.05698674]
[1748877352314,0.3243432,104320.0,104310.0,0.94745789]
[1748877352518,0.1327,104320.0,104310.0,1.685216]
[1748877352924,0.1329,104320.0,104310.0,1.685216]
[1748877353129,0.1329,104320.0,104310.0,1.36538996]
[1748877353313,0.1329,104320.0,104310.0,1.53126807]
[1748877353715,0.166,104320.0,104310.0,1.53125769]
[1748877355324,0.166,104320.0,104310.0,3.03125769]
[1748877355622,0.3576431,104320.0,104310.0,2.29449958]
[1748877355830,0.3576431,104320.0,104310.0,2.99837769]
[1748877356329,0.3576431,104320.0,104310.0,2.47655605]
[1748877356531,0.1002,104320.0,104310.0,3.1641358]
[1748877356718,0.1,104320.0,104310.0,3.1641358]
[1748877356918,0.1002,104320.0,104310.0,3.1641358]
[1748877357118,0.1002,104320.0,104310.0,3.21291416]
[1748877359533,0.1002,104320.0,104310.0,3.04703605]
[1748877360335,0.1002,104320.0,104310.0,2.88106568]
[1748877360528,0.1002,104320.0,104310.0,3.04694379]
[1748877360719,0.1002,104320.0,104310.0,0.92342568]
[1748877361030,0.199,104320.0,104310.0,1.38062568]
[1748877361223,0.199,104320.0,104310.0,2.87779151]
[1748877361424,0.3906432,104320.0,104310.0,1.37775151]
[1748877361831,0.199,104320.0,104310.0,1.37775151]
[1748877362019,0.3906431,104320.0,104310.0,1.37775151]
[1748877362416,0.3906431,104320.0,104310.0,0.87267671]
[1748877362721,0.55652121,104320.0,104310.0,0.08513939]
[1748877363035,0.55652121,104320.0,104310.0,0.40674261]
[1748877363221,0.91732121,104320.0,104310.0,0.40674261]
[1748877363616,0.1916614,104310.0,104300.0,0.3045056]
[1748877363830,0.78273951,104310.0,104300.0,0.7618656]
[1748877364528,0.6168614,104310.0,104300.0,0.7623856]
[1748877365121,0.90195996,104310.0,104300.0,0.3045056]
[1748877365320,0.90195996,104310.0,104300.0,0.6668556]
[1748877365728,0.90195996,104310.0,104300.0,0.5668556]
[1748877366519,0.90195996,104310.0,104300.0,0.45824]
[1748877366724,0.90195996,104310.0,104290.0,0.3066416]
[1748877366725,0.1916798,104300.0,104290.0,0.7955626]
[1748877366932,1.30445791,104300.0,104290.0,0.3375626]
[1748877367134,1.40033791,104300.0,104290.0,0.7477592]
[1748877367638,1.30445791,104300.0,104290.0,0.7181292]
[1748877368635,1.40545791,104300.0,104290.0,0.7456508]
[1748877369931,1.40545791,104300.0,104290.0,0.0002]
[1748877370139,1.40545791,104300.0,104290.0,0.6024982]
[1748877370339,1.40545791,104300.0,104290.0,0.0002]
[1748877370532,0.1916982,104290.0,104280.0,0.49616145]
[1748877370727,0.064,104290.0,104280.0,1.12027956]
[1748877370933,0.2558982,104290.0,104280.0,1.18477956]
[1748877371539,0.3558982,104290.0,104280.0,1.18477956]
[1748877371836,0.3558982,104290.0,104280.0,0.35437735]
[1748877371837,0.88257631,104290.0,104280.0,0.35437735]
[1748877372140,0.88257631,104290.0,104280.0,0.17705625]
[1748877372545,0.88257631,104290.0,104280.0,0.62901625]
[1748877372733,0.88257631,104290.0,104280.0,0.62921625]
[1748877372934,0.88257631,104290.0,104280.0,0.53605625]
[1748877373241,0.88257631,104290.0,104280.0,0.72777285]
[1748877373734,0.88257631,104290.0,104280.0,0.01658]
[1748877373935,0.88257631,104290.0,104280.0,0.5667766]
[1748877374135,0.88257631,104290.0,104280.0,0.45848]
[1748877374331,0.1917166,104280.0,104270.0,0.14138819]
[1748877374553,0.46169471,104280.0,104270.0,0.79152309]
[1748877374839,0.82249471,104280.0,104270.0,0.79152309]
[1748877375034,0.82249471,104280.0,104270.0,0.33312309]
[1748877375338,0.82249471,104280.0,104270.0,0.79140309]
[1748877375640,0.82249471,104280.0,104270.0,0.59966819]
[1748877375844,0.92249471,104280.0,104270.0,0.71370715]
[1748877376334,0.92349471,104280.0,104270.0,0.52197225]
[1748877376538,0.92349471,104280.0,104270.0,0.52217225]
[1748877377130,1.08937282,104280.0,104270.0,0.04508595]
[1748877377337,1.18527282,104280.0,104270.0,0.04508595]
[1748877377641,1.24355622,104280.0,104240.0,1.9177638]
[1748877377843,1.24355622,104280.0,104240.0,3.4614203]
[1748877377844,0.1917718,104250.0,104240.0,3.4614203]
[1748877378034,0.1917718,104250.0,104240.0,1.2409603]
[1748877378344,0.2957718,104250.0,104240.0,1.2411603]
[1748877379143,0.2957718,104250.0,104240.0,1.25827869]
[1748877379347,0.95384991,104250.0,104240.0,0.01731839]
[1748877379542,1.48052802,104250.0,104240.0,0.47655839]
[1748877379843,0.19179,104240.0,104230.0,0.11467072]
[1748877380041,0.42536811,104240.0,104230.0,0.57387072]
[1748877380239,0.42536811,104240.0,104230.0,0.47379072]
[1748877380240,0.80550228,104240.0,104230.0,0.47379072]
[1748877380438,0.80550228,104240.0,104230.0,0.20667912]
[1748877380643,0.80550228,104240.0,104230.0,0.47371072]
[1748877380834,0.80550228,104240.0,104230.0,0.66571912]
[1748877381036,0.80550228,104240.0,104230.0,0.1940084]
[1748877381243,0.80550228,104240.0,104230.0,0.6540484]
[1748877381445,0.86670513,104240.0,104230.0,0.46224]
[1748877381642,0.96670513,104240.0,104230.0,0.46104]
[1748877381939,0.96670513,104240.0,104230.0,0.21113905]
[1748877382133,0.96670513,104240.0,104230.0,0.66989905]
[1748877382336,0.18703417,104240.0,104230.0,0.89698001]
[1748877382534,0.37882427,104240.0,104230.0,1.32768001]
[1748877383444,0.37882427,104240.0,104230.0,1.32668001]
[1748877383746,0.37982427,104240.0,104230.0,1.32568001]
[1748877383941,0.37982427,104240.0,104230.0,0.73815905]
[1748877384136,0.37982427,104240.0,104230.0,0.66897915]
[1748877384440,0.73962427,104240.0,104230.0,0.0022]
[1748877384746,0.96670523,104240.0,104230.0,0.36108]
[1748877384942,0.96670523,104240.0,104230.0,0.36128]
[1748877385445,0.96770523,104240.0,104230.0,0.36128]
[1748877385646,0.96770523,104240.0,104230.0,0.4592]
[1748877385945,0.96770523,104240.0,104230.0,0.6510085]
[1748877386140,0.96770523,104240.0,104230.0,0.4592]
[1748877386448,0.96770523,104240.0,104230.0,0.6510085]
[1748877386941,0.96870523,104240.0,104230.0,0.4592]
[1748877387148,0.96870523,104240.0,104230.0,0.6507285]
[1748877387646,0.60790523,104240.0,104230.0,0.6507285]
[1748877387846,0.96870523,104240.0,104230.0,0.66794304]
[1748877388145,0.74162427,104240.0,104230.0,0.6507285]
[1748877389743,0.74162427,104240.0,104230.0,0.66798176]
[1748877389948,0.60790523,104240.0,104230.0,0.4584]
[1748877390147,0.96870523,104240.0,104230.0,0.0002]
[1748877390645,0.1918268,104220.0,104210.0,1.59271]
[1748877390850,0.21148173,104220.0,104210.0,0.96319]
[1748877391147,0.28368173,104220.0,104210.0,0.96319]
[1748877391351,0.28368173,104220.0,104210.0,1.04163205]
[1748877391549,0.28368173,104220.0,104210.0,1.04143205]
[1748877391848,0.28368173,104220.0,104210.0,1.04343205]
[1748877392254,0.28368173,104220.0,104210.0,0.0022]
[1748877392255,0.87156269,104220.0,104210.0,0.0022]
[1748877392453,0.97156269,104220.0,104210.0,0.0022]
[1748877392652,0.97156269,104220.0,104210.0,0.002]
[1748877392851,1.01952119,104220.0,104210.0,0.0022]
[1748877393341,0.79244023,104220.0,104210.0,0.1940453]
[1748877393539,0.43664023,104220.0,104210.0,0.1920453]
[1748877393740,0.43664023,104220.0,104210.0,0.7540653]
[1748877393954,0.43864023,104220.0,104210.0,0.7540653]
[1748877394150,0.43864023,104220.0,104210.0,0.7540253]
[1748877394357,0.79944023,104220.0,104210.0,0.7540253]
[1748877394655,0.79744023,104220.0,104210.0,0.7540253]
[1748877395047,0.79644023,104220.0,104210.0,0.7540253]
[1748877395654,0.79644023,104220.0,104210.0,0.83225312]
[1748877396054,0.79444023,104220.0,104210.0,0.83225312]
[1748877396956,0.79444023,104220.0,104210.0,0.83325312]
[1748877398654,0.79444023,104220.0,104210.0,0.83301312]
[1748877399759,0.43364023,104220.0,104210.0,0.83301312]
[1748877402656,0.12165493,104220.0,104210.0,1.42089408]
[1748877402855,0.31348173,104220.0,104210.0,1.42089408]
[1748877403056,0.31348173,104220.0,104210.0,1.43569019]
[1748877403259,0.31348173,104220.0,104210.0,1.42089408]
[1748877403462,0.12590447,104220.0,104210.0,1.43569005]
[1748877403659,0.12590447,104220.0,104210.0,1.48295567]
[1748877403962,0.12590447,104220.0,104210.0,1.24207874]
[1748877404152,0.31773137,104220.0,104210.0,1.4701597]
[1748877404352,0.12590447,104220.0,104210.0,1.4701597]
[1748877404659,0.31773127,104220.0,104210.0,1.24275874]
[1748877404860,0.31773127,104220.0,104210.0,1.25755452]
[1748877405063,0.39343127,104220.0,104210.0,1.25735452]
[1748877405255,0.39343127,104220.0,104210.0,1.25535452]
[1748877405457,0.39443127,104220.0,104210.0,0.90855452]
[1748877405654,0.39443127,104220.0,104210.0,0.9233506]
[1748877405962,0.39543127,104220.0,104210.0,0.92175452]
[1748877406162,0.39443127,104220.0,104210.0,0.90979983]
[1748877406358,0.39343127,104220.0,104210.0,0.89579983]
[1748877406663,0.39343127,104220.0,104210.0,0.89679983]
[1748877406861,0.39343127,104220.0,104210.0,0.91161085]
[1748877407066,0.39343127,104220.0,104210.0,0.89679983]
[1748877408064,0.39343127,104220.0,104210.0,0.24703453]
[1748877408366,0.39343127,104220.0,104210.0,0.70419453]
[1748877408564,0.39343127,104220.0,104210.0,0.70399453]
[1748877408764,0.39343127,104220.0,104210.0,0.89583973]
[1748877409068,0.39343127,104220.0,104210.0,0.89603973]
[1748877409662,0.39343127,104220.0,104210.0,0.89503973]
[1748877409868,0.39343127,104220.0,104210.0,1.12112069]
[1748877410463,0.35533147,104220.0,104210.0,1.12112069]
[1748877411062,0.35533147,104220.0,104210.0,1.07380976]
[1748877411266,0.12590447,104220.0,104210.0,1.4820011]
[1748877411670,0.10624954,104220.0,104210.0,1.4820011]
[1748877411977,0.10624954,104220.0,104210.0,1.54171387]
[1748877412168,0.10624954,104220.0,104210.0,3.04171387]
[1748877413280,0.10624954,104220.0,104210.0,3.13766987]
[1748877413457,0.102,104220.0,104210.0,3.13766987]
[1748877414264,0.00014373,104230.0,104220.0,0.191827]
[1748877414458,0.0752,104250.0,104240.0,0.1917902]
[1748877414459,0.0747,104250.0,104240.0,0.1917902]
[1748877414766,0.0384,104250.0,104240.0,1.39542728]
[1748877414975,0.0384,104250.0,104240.0,1.46642728]
[1748877415267,0.0384,104250.0,104240.0,2.96642728]
[1748877415773,0.0434,104250.0,104240.0,2.96642728]
[1748877416170,0.0434,104250.0,104240.0,2.96742728]
[1748877416365,0.0384,104250.0,104240.0,2.96742728]
[1748877416675,0.0747,104250.0,104240.0,2.96742728]
[1748877416972,0.0747,104250.0,104240.0,2.96942728]
[1748877417168,0.1747,104250.0,104240.0,2.96942728]
[1748877417572,0.1384,104250.0,104240.0,2.96942728]
[1748877418974,0.1384,104250.0,104240.0,2.96934105]
[1748877419271,0.1733,104250.0,104240.0,2.96934105]
[1748877419668,0.3650718,104250.0,104240.0,2.96934105]
[1748877420265,0.3650718,104250.0,104240.0,2.74226009]
[1748877420767,0.3650718,104250.0,104240.0,2.09386989]
[1748877420967,0.7258718,104250.0,104240.0,0.6629902]
[1748877421472,0.7258718,104250.0,104240.0,0.6631902]
[1748877422077,0.7258718,104250.0,104240.0,0.6601902]
[1748877422575,0.7258718,104250.0,104240.0,0.4684]
[1748877422769,0.7258718,104250.0,104240.0,0.1919902]
[1748877422974,0.7258718,104250.0,104240.0,0.7602702]
[1748877424669,0.73012134,104250.0,104240.0,0.56848]
[1748877424871,0.73012134,104250.0,104240.0,0.7602702]
[1748877425377,0.1917902,104240.0,104230.0,0.69659063]
[1748877425580,0.3045902,104240.0,104230.0,1.26471063]
[1748877425883,0.6653902,104240.0,104230.0,0.3037562]
[1748877426079,0.6653902,104240.0,104230.0,0.7599162]
[1748877426264,0.3045902,104240.0,104230.0,0.7599162]
[1748877426467,0.3045902,104240.0,104230.0,0.7601162]
[1748877426975,0.1751,104240.0,104230.0,1.34799716]
[1748877427178,0.1751,104240.0,104230.0,1.42079716]
[1748877428369,0.1751,104240.0,104230.0,1.42279716]
[1748877428775,0.1751,104240.0,104230.0,1.42379716]
[1748877429370,0.3668902,104240.0,104230.0,0.6285962]
[1748877429570,0.3668902,104240.0,104230.0,1.1970362]
[1748877430079,0.1751,104240.0,104230.0,1.1970362]
[1748877431778,0.1751,104240.0,104230.0,1.24573457]
[1748877434971,0.3668901,104240.0,104230.0,1.47185553]
[1748877435167,0.1751,104240.0,104230.0,1.47185553]
[1748877436972,0.1,104240.0,104230.0,1.47185553]
[1748877437170,0.1,104240.0,104230.0,1.470527]
[1748877437368,0.1,104240.0,104230.0,1.40945659]
[1748877437775,0.1,104240.0,104230.0,2.90945659]
[1748877438683,0.1742,104240.0,104230.0,2.90945659]
[1748877438875,0.00214373,104250.0,104240.0,0.1917902]
[1748877439178,0.4724207,104260.0,104250.0,0.1917718]
[1748877439375,0.04144954,104260.0,104250.0,1.15476443]
[1748877439572,0.00424954,104260.0,104250.0,1.52781044]
[1748877439772,0.002,104280.0,104250.0,1.90880616]
[1748877439972,0.18369304,104290.0,104280.0,0.1917166]
[1748877440270,0.18369304,104290.0,104280.0,1.34652412]
[1748877440574,0.18369304,104290.0,104280.0,1.41942412]
[1748877440977,0.37539124,104290.0,104280.0,1.1925766]
[1748877441286,0.2275982,104290.0,104280.0,1.1554766]
[1748877441582,0.3295982,104290.0,104280.0,1.1554766]
[1748877441977,0.3295982,104290.0,104280.0,1.23163581]
[1748877442181,0.3295982,104290.0,104280.0,1.45848333]
[1748877442680,0.3295982,104290.0,104280.0,1.23163581]
[1748877442887,0.3295982,104290.0,104280.0,0.07615921]
[1748877443085,0.7272982,104290.0,104280.0,0.7591966]
[1748877443286,0.7272982,104290.0,104280.0,0.5978977]
[1748877443287,0.7292982,104290.0,104280.0,0.5978977]
[1748877443472,0.7292982,104290.0,104280.0,0.5980977]
[1748877443882,0.7292982,104290.0,104280.0,0.7898143]
[1748877445079,0.7648982,104290.0,104280.0,0.7898143]
[1748877446380,0.7648982,104290.0,104280.0,0.86469928]
[1748877447590,0.7648982,104290.0,104280.0,0.86433928]
[1748877450996,0.7648982,104290.0,104280.0,0.90293928]
[1748877451689,0.7648982,104290.0,104280.0,0.86433928]
[1748877451893,0.7648982,104290.0,104280.0,0.67262268]
[1748877452083,0.7648982,104290.0,104280.0,0.21642268]
[1748877452279,0.7648982,104290.0,104280.0,0.86397928]
[1748877452489,0.7648982,104290.0,104280.0,0.67226268]
[1748877452689,0.7648982,104290.0,104280.0,0.86397928]
[1748877454393,0.7648982,104290.0,104280.0,0.67186268]
[1748877455096,0.76914774,104290.0,104280.0,0.67186268]
[1748877455489,0.76914774,104290.0,104280.0,0.21642268]
[1748877455689,0.76914774,104290.0,104280.0,0.54108498]
[1748877455690,0.99599526,104290.0,104280.0,0.54108498]
[1748877455889,0.99599526,104290.0,104280.0,0.08600498]
[1748877456193,0.99599526,104290.0,104280.0,0.6476898]
[1748877456392,0.76914774,104290.0,104280.0,0.54152498]
[1748877456591,0.76914774,104290.0,104280.0,0.57175476]
[1748877457192,0.99599526,104290.0,104280.0,0.54152498]
[1748877457495,0.94811506,104290.0,104270.0,0.11092]
[1748877457697,0.63876082,104280.0,104270.0,0.5668]
[1748877457887,0.99956082,104280.0,104270.0,0.47108]
[1748877458087,0.58670496,104270.0,104260.0,0.00211011]
[1748877458286,0.94712913,104270.0,104260.0,0.45827011]
[1748877458592,1.06567857,104270.0,104260.0,0.45847011]
[1748877458902,1.78727857,104270.0,104260.0,0.45847011]
[1748877459487,1.78727857,104270.0,104260.0,0.45831011]
[1748877459690,1.88727857,104270.0,104260.0,0.45831011]
[1748877460296,1.89027857,104270.0,104260.0,0.45831011]
[1748877460698,1.89327857,104270.0,104260.0,0.45831011]
[1748877462098,0.94614944,104270.0,104260.0,0.65006231]
[1748877462401,0.5047,104270.0,104260.0,0.98900983]
[1748877462597,0.3356338,104270.0,104260.0,1.34980983]
[1748877462801,0.1439,104270.0,104260.0,1.34980983]
[1748877463192,0.1379,104270.0,104260.0,1.35280983]
[1748877464199,0.3296338,104270.0,104260.0,1.12596231]
[1748877464392,0.3296338,104270.0,104260.0,1.04505011]
[1748877464591,0.4040338,104270.0,104260.0,0.87580231]
[1748877464903,0.4040338,104270.0,104260.0,1.46344983]
[1748877465292,0.4040338,104270.0,104260.0,1.46364983]
[1748877465703,0.4040338,104270.0,104260.0,1.46164983]
[1748877466200,0.4040338,104270.0,104260.0,1.46064983]
[1748877466416,0.42303419,104270.0,104260.0,1.37837983]
[1748877466901,0.19330039,104270.0,104260.0,1.37837983]
[1748877467104,0.19330039,104270.0,104260.0,1.37937983]
[1748877467301,0.15690039,104270.0,104260.0,1.37937983]
[1748877467501,0.15690039,104270.0,104260.0,2.87937983]
[1748877467696,0.15690039,104270.0,104260.0,2.87885983]
[1748877468805,0.15690039,104270.0,104260.0,2.92638949]
[1748877469404,0.15690039,104270.0,104260.0,2.96328949]
[1748877469606,0.15690039,104270.0,104260.0,2.98298949]
[1748877471306,0.15690039,104270.0,104260.0,2.93545983]
[1748877471508,0.11900039,104270.0,104260.0,2.98299291]
[1748877471694,0.77560347,104300.0,104290.0,0.1916971]
[1748877471695,0.94836433,104300.0,104290.0,0.1916971]
[1748877471893,0.94836433,104300.0,104290.0,0.98490462]
[1748877472118,0.46921489,104300.0,104290.0,1.04210462]
[1748877472308,0.46921489,104300.0,104290.0,1.07800462]
[1748877472510,0.46921489,104300.0,104290.0,0.8511571]
[1748877472806,0.66489359,104300.0,104290.0,0.8511571]
[1748877473695,0.47621489,104300.0,104290.0,0.8511571]
[1748877474002,0.47621489,104300.0,104290.0,1.43880462]
[1748877474003,0.53901489,104300.0,104290.0,1.43880462]
[1748877474205,0.50211489,104300.0,104290.0,1.43880462]
[1748877474596,0.49731489,104300.0,104290.0,1.43880462]
[1748877474802,0.49911489,104300.0,104290.0,1.48754801]
[1748877474999,0.49931489,104300.0,104290.0,1.48754801]
[1748877475294,0.49911489,104300.0,104290.0,1.48754801]
[1748877475499,0.49931489,104300.0,104290.0,1.48754801]
[1748877476896,0.49931489,104300.0,104290.0,1.43880462]
[1748877478705,0.49931489,104300.0,104290.0,2.93880462]
[1748877479205,0.10434373,104300.0,104290.0,2.93880462]
[1748877479413,0.10434373,104300.0,104290.0,2.90290462]
[1748877479613,0.10434373,104300.0,104290.0,2.90198462]
[1748877480402,0.10434373,104300.0,104290.0,2.44738462]
[1748877480602,0.10434373,104300.0,104290.0,2.90198462]
[1748877482210,0.0399,104310.0,104300.0,0.1916787]
[1748877482406,0.0399,104310.0,104300.0,0.85142622]
[1748877483111,0.0399,104310.0,104300.0,0.88788943]
[1748877483708,0.1399,104310.0,104300.0,0.88788943]
[1748877483912,0.108,104310.0,104300.0,0.88788943]
[1748877484114,0.1082,104310.0,104300.0,2.38788943]
[1748877484413,0.08769352,104310.0,104300.0,2.38788943]
[1748877484713,0.09194306,104310.0,104300.0,2.35142622]
[1748877484912,0.09194306,104310.0,104300.0,2.39881515]
[1748877485215,0.09194306,104310.0,104300.0,2.53111531]
[1748877485412,0.08894306,104310.0,104300.0,2.75996283]
[1748877485609,0.46103656,104330.0,104320.0,0.191642]
[1748877485910,0.0371,104330.0,104320.0,0.77928952]
[1748877486109,0.0371,104330.0,104320.0,1.25091288]
[1748877486520,0.0373,104330.0,104320.0,1.25091288]
[1748877486708,0.0373,104330.0,104320.0,1.21448952]
[1748877486909,0.0373,104330.0,104320.0,1.77992952]
[1748877487123,0.0383,104330.0,104320.0,1.77992952]
[1748877487619,0.1383,104330.0,104320.0,1.77992952]
[1748877487799,0.1393,104330.0,104320.0,1.77992952]
[1748877488899,0.1022,104330.0,104320.0,1.77992952]
[1748877489505,0.1022,104330.0,104320.0,1.92311685]
[1748877489801,0.00889924,104340.0,104330.0,0.1916236]
[1748877490007,0.00889924,104340.0,104330.0,0.85157112]
[1748877490310,0.00889924,104340.0,104330.0,0.89881633]
[1748877490311,0.00909924,104340.0,104330.0,0.89881633]
[1748877490516,0.18339924,104340.0,104330.0,0.89881633]
[1748877490810,0.18639924,104340.0,104330.0,0.89881633]
[1748877491217,0.18839924,104340.0,104330.0,0.89881633]
[1748877492309,0.22859924,104340.0,104330.0,0.89881633]
[1748877494818,0.22859924,104340.0,104330.0,0.97526759]
[1748877495820,0.22859924,104340.0,104330.0,1.54042759]
[1748877498520,0.22859924,104340.0,104330.0,1.58782477]
[1748877499020,0.22859924,104340.0,104330.0,1.58746477]
[1748877499220,0.22859924,104340.0,104330.0,1.36061725]
[1748877499421,0.22859924,104340.0,104330.0,1.47893485]
[1748877499623,0.22859924,104340.0,104330.0,0.72353892]
[1748877499825,0.23284878,104340.0,104330.0,1.28825892]
[1748877500029,0.23284878,104340.0,104330.0,1.4539737]
[1748877500331,0.23284878,104340.0,104330.0,1.4933737]
[1748877500519,0.23284878,104340.0,104330.0,1.5330737]
[1748877500725,0.23264878,104340.0,104330.0,1.56949706]
[1748877500927,0.23284878,104340.0,104330.0,1.56949706]
[1748877501824,0.23284878,104340.0,104330.0,1.56921217]
[1748877502424,0.23284878,104340.0,104330.0,1.56921276]
[1748877502626,0.23284878,104340.0,104330.0,1.56949276]
[1748877503328,0.0403,104350.0,104340.0,0.1916053]
[1748877503522,0.0793,104350.0,104340.0,0.99693486]
[1748877503726,0.0793,104350.0,104340.0,1.03335822]
[1748877504024,0.0793,104350.0,104340.0,2.58051458]
[1748877504626,0.0835,104350.0,104340.0,2.58051458]
[1748877505012,0.1835,104350.0,104340.0,2.58051458]
[1748877505524,0.1865,104350.0,104340.0,2.58051458]
[1748877505918,0.1865,104350.0,104340.0,2.59488458]
[1748877506119,0.1865,104350.0,104340.0,2.59489353]
[1748877507627,0.1865,104350.0,104340.0,2.60314902]
[1748877507826,0.002,104370.0,104360.0,0.1915686]
[1748877508034,0.03231,104370.0,104360.0,1.32048338]
[1748877508221,0.03231,104370.0,104360.0,1.36128338]
[1748877508424,0.03251,104370.0,104360.0,1.80637769]
[1748877508728,0.03231,104370.0,104360.0,1.80637769]
[1748877508922,0.03351,104370.0,104360.0,1.80637769]
[1748877509117,0.03351,104370.0,104360.0,1.84607769]
[1748877509526,0.03351,104370.0,104360.0,3.34607769]
[1748877509831,0.03351,104370.0,104360.0,3.29824795]
[1748877510131,0.03351,104370.0,104360.0,3.34608813]
[1748877510323,0.03351,104370.0,104360.0,2.89124813]
[1748877510633,0.13351,104370.0,104360.0,3.34592813]
[1748877510931,0.13351,104370.0,104360.0,3.34588813]
[1748877511235,0.1012,104370.0,104360.0,3.22826813]
[1748877511416,0.1386,104370.0,104360.0,3.34736813]
[1748877511622,0.1384,104370.0,104360.0,3.34736813]
[1748877512230,0.1386,104370.0,104360.0,3.34736813]
[1748877512426,0.1386,104370.0,104360.0,3.3952418]
[1748877513229,0.1386,104370.0,104360.0,3.39212009]
[1748877513427,0.1386,104370.0,104360.0,3.39172009]
[1748877513831,0.2179,104370.0,104360.0,3.27259503]
[1748877514427,0.2179,104370.0,104360.0,3.27265978]
[1748877514428,0.1791,104370.0,104360.0,3.27265978]
[1748877514630,0.1789,104370.0,104360.0,3.34928859]
[1748877515020,0.1789,104370.0,104360.0,3.36145985]
[1748877515220,0.18334954,104370.0,104360.0,3.36145985]
[1748877515627,0.18334954,104370.0,104360.0,3.31277481]
[1748877516334,0.18334954,104370.0,104360.0,3.36145985]
[1748877516523,0.18334954,104370.0,104360.0,3.31277481]
[1748877516730,0.18334954,104370.0,104360.0,3.3725973]
[1748877516926,0.41927232,104400.0,104370.0,0.0478835]